bitfinex/quotes_ETHUSD_20241217
["timestamp","ask_amount","ask_price","bid_price","bid_amount"]
[1734474632644,0.23547997,3906.8,3905.9,0.10462108]
[1734474632844,0.23547997,3906.8,3906.0,0.10462108]
[1734474633042,0.23547997,3906.8,3906.1,0.10462108]
[1734474633265,0.23547997,3906.8,3906.2,0.10462108]
[1734474633470,0.57742738,3906.8,3905.1,0.022]
[1734474633673,0.57742738,3906.8,3905.4,3.0]
[1734474633674,0.23547997,3906.7,3905.4,3.0]
[1734474633837,0.23547997,3906.7,3905.5,0.10464141]
[1734474634035,0.37884602,3906.9,3905.6,0.10464141]
[1734474634368,0.37884602,3906.9,3905.7,0.10464141]
[1734474634527,0.37884602,3906.9,3905.1,0.022]
[1734474634528,0.37884602,3906.9,3905.8,0.10464141]
[1734474634733,0.37884602,3906.9,3905.5,3.0]
[1734474634734,0.23545558,3906.8,3905.9,0.10464141]
[1734474634935,0.37884602,3906.9,3906.0,0.10464141]
[1734474635160,0.37884602,3906.9,3905.1,0.022]
[1734474635161,0.37884602,3906.9,3906.1,0.10464141]
[1734474635431,0.37884602,3906.9,3906.2,0.10464141]
[1734474635746,0.37884602,3906.9,3906.3,0.10464101]
[1734474635944,2.452982,3907.1,3906.4,0.10464101]
[1734474636163,0.23545214,3907.0,3905.2,0.55]
[1734474636359,0.23545214,3907.0,3905.3,0.10461828]
[1734474636563,0.23545214,3907.0,3905.6,0.55]
[1734474636872,0.23545214,3907.0,3905.7,0.10461828]
[1734474637045,0.23545214,3907.0,3905.8,0.47008011]
[1734474637253,0.23545214,3907.0,3905.9,0.10461828]
[1734474637449,0.23545214,3907.0,3905.6,0.55]
[1734474637450,0.23545214,3907.0,3906.0,0.10461828]
[1734474637766,0.23545214,3907.0,3906.1,0.10461828]
[1734474637986,2.452982,3907.1,3905.6,0.55]
[1734474638135,2.452982,3907.1,3906.2,0.10463364]
[1734474638367,0.23546317,3907.0,3906.3,0.10463364]
[1734474638570,0.23546317,3907.0,3905.7,0.355]
[1734474638804,0.23546317,3907.0,3905.8,0.10464424]
[1734474639003,0.23546317,3907.0,3905.9,0.10464424]
[1734474639212,0.23546317,3907.0,3905.1,0.022]
[1734474639213,0.23546317,3907.0,3906.0,0.10464424]
[1734474639409,0.23546317,3907.0,3906.1,0.10464424]
[1734474639721,0.23546317,3907.0,3906.2,0.10464424]
[1734474639930,0.34654452,3906.9,3906.3,0.10464424]
[1734474640066,0.34654452,3906.9,3906.4,0.10464424]
[1734474640265,0.777,3907.2,3905.6,0.86261072]
[1734474640481,0.7538,3907.8,3906.6,0.55]
[1734474640717,0.23556952,3907.7,3906.7,0.10465578]
[1734474641013,0.7538,3907.8,3906.8,0.10465578]
[1734474641215,0.7538,3907.8,3906.6,0.55]
[1734474641216,0.7538,3907.8,3906.9,0.10465578]
[1734474641382,0.7538,3907.8,3906.6,0.572]
[1734474641383,0.7538,3907.8,3907.0,0.10465578]
[1734474641712,0.7538,3907.8,3907.1,0.10465578]
[1734474641866,0.7538,3907.8,3907.2,0.10465578]
[1734474642107,2.452982,3908.1,3907.3,0.10465578]
[1734474642266,2.452982,3908.1,3907.4,0.10465578]
[1734474642510,2.452982,3908.1,3907.5,0.10465578]
[1734474642692,2.452982,3908.1,3907.6,0.10465578]
[1734474642903,2.7736602,3908.1,3906.3,0.02559221]
[1734474643195,2.7736602,3908.1,3905.9,2.14813371]
[1734474643196,0.7538,3907.6,3906.4,0.10460081]
[1734474643396,0.7538,3907.6,3905.1,2.12613371]
[1734474643397,2.452982,3907.3,3906.5,0.10460081]
[1734474643597,0.7538,3907.2,3906.6,0.10460081]
[1734474643820,0.81216372,3907.1,3905.5,0.022]
[1734474643982,0.7538,3907.2,3905.6,0.13023465]
[1734474643983,0.23556565,3907.0,3905.6,0.13023465]
[1734474644319,1.57155399,3908.1,3905.9,0.022]
[1734474644320,0.7538,3908.0,3905.9,0.022]
[1734474644529,0.23566235,3907.9,3906.0,1.48390339]
[1734474644677,0.7538,3908.0,3906.1,1.16770049]
[1734474644875,0.23566362,3907.9,3906.2,0.65463364]
[1734474645185,0.7538,3908.0,3906.4,0.55]
[1734474645382,0.23572257,3907.9,3906.5,0.10463364]
[1734474645582,0.23572257,3907.9,3906.6,0.65463364]
[1734474645800,0.23572257,3907.9,3906.4,0.55]
[1734474645801,0.7538,3908.0,3906.7,0.10463364]
[1734474646123,0.7538,3908.0,3906.8,0.10463364]
[1734474646288,0.7538,3908.0,3906.9,0.12663364]
[1734474646495,0.7538,3908.0,3907.0,0.417297]
[1734474646683,0.7538,3908.4,3907.1,0.10463364]
[1734474646885,0.23574541,3908.3,3907.2,0.10463364]
[1734474647109,0.23574541,3908.3,3907.3,0.10463364]
[1734474647303,0.7538,3908.4,3907.4,0.10463364]
[1734474647642,0.7538,3908.4,3907.5,0.10463364]
[1734474647770,0.7538,3908.4,3906.9,0.04758903]
[1734474647969,0.1629585,3908.6,3907.6,0.10464132]
[1734474648165,0.1629585,3908.6,3907.7,0.10464132]
[1734474648423,0.1629585,3908.6,3907.1,0.55]
[1734474648424,0.1629585,3908.6,3907.8,0.10464132]
[1734474648625,0.1629585,3908.6,3907.9,0.10464132]
[1734474648773,0.1629585,3908.6,3908.0,0.10464132]
[1734474648983,0.1629585,3908.6,3908.1,0.10464132]
[1734474649181,0.1629585,3908.6,3907.1,0.57558635]
[1734474649182,0.1629585,3908.6,3908.2,0.10464132]
[1734474649500,0.1629585,3908.6,3908.3,0.10464132]
[1734474649709,0.1629585,3908.6,3908.4,0.10464132]
[1734474649886,0.1629585,3908.6,3907.1,0.55]
[1734474650089,0.1629585,3908.6,3907.3,0.55]
[1734474650289,0.1629585,3908.6,3907.5,0.55]
[1734474650484,0.1629585,3908.6,3907.7,0.55]
[1734474650715,0.1629585,3908.6,3907.8,0.104568]
[1734474650920,0.1629585,3908.6,3907.9,0.104568]
[1734474651130,0.1629585,3908.6,3907.3,0.02558379]
[1734474651131,0.1629585,3908.6,3907.4,0.55]
[1734474651435,0.1629585,3908.6,3907.6,0.55]
[1734474651594,0.1629585,3908.6,3907.7,0.022]
[1734474651776,0.1629585,3908.6,3907.9,0.55]
[1734474652186,0.1629585,3908.6,3908.1,3.0]
[1734474652487,0.1629585,3908.6,3908.0,0.10443136]
[1734474652488,0.1629585,3908.6,3908.2,0.10443136]
[1734474652708,0.1629585,3908.6,3908.3,0.10443136]
[1734474652909,0.1629585,3908.6,3908.4,0.10443136]
[1734474653115,0.1629585,3908.6,3908.5,0.10443136]
[1734474653679,0.1629585,3908.6,3908.5,0.4148745]
[1734474653927,0.1629585,3908.6,3908.5,0.10443136]
[1734474654225,8.5e-06,3908.6,3908.5,0.12643136]
[1734474654429,8.5e-06,3908.6,3908.5,0.67643136]
[1734474654590,8.5e-06,3908.6,3908.5,0.12643136]
[1734474657626,8.5e-06,3908.6,3908.5,0.022]
[1734474657808,8.5e-06,3908.6,3908.5,0.12610536]
[1734474657979,8.5e-06,3908.6,3908.5,0.67610536]
[1734474658380,8.5e-06,3908.6,3908.5,0.10410536]
[1734474662028,8.5e-06,3908.6,3907.8,0.12543959]
[1734474662234,8.5e-06,3908.6,3907.9,0.10406914]
[1734474662415,8.5e-06,3908.6,3908.0,0.10406914]
[1734474662582,8.5e-06,3908.6,3908.1,0.10406914]
[1734474662786,8.5e-06,3908.6,3907.8,0.12543959]
[1734474663094,8.5e-06,3908.6,3907.9,0.10407901]
[1734474663308,8.5e-06,3908.6,3908.0,0.10407901]
[1734474663484,8.5e-06,3908.6,3908.1,0.10407901]
[1734474663683,8.5e-06,3908.6,3907.8,0.12543959]
[1734474663935,8.5e-06,3908.6,3907.9,0.10410587]
[1734474664137,8.5e-06,3908.6,3908.0,0.10410587]
[1734474664292,8.5e-06,3908.6,3908.1,0.10410587]
[1734474664492,8.5e-06,3908.6,3908.2,0.10410587]
[1734474664692,8.5e-06,3908.6,3908.3,0.10412473]
[1734474664895,8.5e-06,3908.6,3907.8,0.12543959]
[1734474665092,8.5e-06,3908.6,3907.9,0.10412486]
[1734474665293,8.5e-06,3908.6,3908.0,0.10412486]
[1734474665526,8.5e-06,3908.6,3908.1,0.10412486]
[1734474665714,8.5e-06,3908.6,3908.2,0.10412486]
[1734474666029,8.5e-06,3908.6,3908.3,0.10412486]
[1734474666234,8.5e-06,3908.6,3907.8,0.12543959]
[1734474666536,8.5e-06,3908.6,3907.9,0.10420037]
[1734474666830,8.5e-06,3908.6,3908.0,0.10420037]
[1734474667018,8.5e-06,3908.6,3907.8,0.12543959]
[1734474667019,8.5e-06,3908.6,3908.1,0.10420037]
[1734474667219,8.5e-06,3908.6,3908.2,0.10420037]
[1734474667430,8.5e-06,3908.6,3908.3,0.10420037]
[1734474667633,8.5e-06,3908.6,3907.8,0.12543959]
[1734474667634,8.5e-06,3908.6,3908.4,0.10420037]
[1734474667948,8.5e-06,3908.6,3908.5,0.10420037]
[1734474668106,8.5e-06,3908.6,3907.8,0.12543959]
[1734474668296,8.5e-06,3908.6,3907.9,0.10426829]
[1734474668497,8.5e-06,3908.6,3908.0,0.10426829]
[1734474668700,8.5e-06,3908.6,3908.1,0.10426829]
[1734474668960,8.5e-06,3908.6,3908.2,0.10426829]
[1734474669249,8.5e-06,3908.6,3908.3,0.10426829]
[1734474669560,8.5e-06,3908.6,3907.8,0.15102134]
[1734474669720,8.5e-06,3908.6,3908.4,0.10437517]
[1734474669919,8.5e-06,3908.6,3908.5,0.10437517]
[1734474670119,8.5e-06,3908.6,3908.5,0.1043794]
[1734474672603,8.5e-06,3908.6,3908.5,0.1263794]
[1734474673009,8.5e-06,3908.6,3908.5,0.10449089]
[1734474675217,0.7027085,3908.9,3908.5,0.10449089]
[1734474675424,0.7027085,3908.9,3908.6,0.10449089]
[1734474675623,0.7027085,3908.9,3908.7,0.10449089]
[1734474675838,0.7027085,3908.9,3908.8,0.10449089]
[1734474676045,2.55715,3910.6,3908.8,0.10449089]
[1734474676359,4.04770266,3910.8,3908.3,0.0255841]
[1734474676360,0.89652826,3910.5,3908.9,0.10449089]
[1734474676657,0.23604299,3910.4,3909.0,0.10449089]
[1734474676857,0.23604299,3910.3,3909.1,0.10449089]
[1734474677163,0.23604299,3910.3,3908.5,0.072]
[1734474677164,0.23604299,3910.2,3909.2,0.10449089]
[1734474677311,0.23604299,3910.1,3909.3,0.10449089]
[1734474677515,0.23604299,3910.0,3909.4,0.10449089]
[1734474677766,0.23604299,3909.9,3909.5,0.10449089]
[1734474678060,0.23604299,3909.8,3909.6,0.10449089]
[1734474678222,0.7527,3909.8,3909.7,0.10449089]
[1734474678413,0.98896631,3909.8,3909.7,0.10449089]
[1734474679156,0.7527,3909.8,3909.7,0.10449089]
[1734474679516,0.98896684,3909.8,3909.7,0.10481181]
[1734474679862,0.7527,3909.8,3908.5,0.072]
[1734474680075,0.7527,3909.8,3909.7,0.10481183]
[1734474680226,0.7527,3910.3,3908.6,3.4559173]
[1734474680575,0.23629257,3910.2,3908.9,0.072]
[1734474680865,0.7527,3910.3,3909.0,0.10481183]
[1734474681032,0.7527,3910.3,3909.2,3.0]
[1734474681231,0.7527,3910.3,3909.3,0.41529301]
[1734474681419,0.7527,3910.3,3909.4,0.10481183]
[1734474681614,0.7527,3910.3,3909.3,0.31048118]
[1734474681615,0.7527,3910.3,3909.5,0.10481183]
[1734474681856,0.7527,3910.3,3909.6,0.10481183]
[1734474682062,0.7527,3910.3,3909.7,0.10481183]
[1734474682214,0.7527,3910.3,3909.8,0.10481183]
[1734474682426,0.7527,3910.3,3909.9,0.10481183]
[1734474682763,0.7527,3911.6,3910.0,0.17681183]
[1734474682979,0.2361913,3911.5,3910.1,0.10481183]
[1734474683256,0.2361913,3911.4,3910.2,0.10481183]
[1734474683455,0.2361913,3911.3,3910.3,0.10481183]
[1734474683680,0.7527,3911.6,3910.0,0.072]
[1734474683681,0.7527,3911.6,3910.4,0.10481183]
[1734474683861,0.7527,3911.6,3910.5,0.10481183]
[1734474683862,0.23604153,3911.5,3910.5,0.10481183]
[1734474684161,0.23604153,3911.4,3910.6,0.10481183]
[1734474684465,0.23604153,3911.4,3910.0,0.072]
[1734474684466,0.7527,3911.6,3910.7,0.10481183]
[1734474684662,0.23588549,3911.5,3910.8,0.10481183]
[1734474684865,0.23588549,3911.4,3910.9,0.10481183]
[1734474685159,0.7527,3911.6,3911.0,0.10481183]
[1734474685360,0.7527,3911.6,3911.1,0.10481183]
[1734474685361,0.23575107,3911.5,3911.1,0.10481183]
[1734474685668,0.7527,3912.0,3911.2,0.10447279]
[1734474685984,0.55636109,3911.9,3911.3,0.10446808]
[1734474686273,0.3205682,3911.9,3910.0,0.072]
[1734474686436,0.3205682,3911.9,3910.1,0.10439755]
[1734474686639,0.3205682,3911.9,3910.0,0.072]
[1734474686640,0.2356389,3911.8,3910.2,0.10439755]
[1734474686874,0.3205682,3911.9,3910.0,0.072]
[1734474686875,0.3205682,3911.9,3910.3,0.10439755]
[1734474687026,0.3205682,3911.9,3910.4,0.10439755]
[1734474687369,0.3205682,3911.9,3910.5,0.10439755]
[1734474687589,0.3205682,3911.9,3910.6,0.10439755]
[1734474687792,0.3205682,3911.9,3910.7,0.10439755]
[1734474688102,0.59844796,3911.8,3910.8,0.10439755]
[1734474688269,0.36295182,3911.8,3910.9,0.10439755]
[1734474688460,0.36295182,3911.8,3910.0,0.072]
[1734474688461,0.7527,3911.6,3910.0,0.072]
[1734474688677,0.59565244,3911.5,3910.1,0.1043051]
[1734474688864,0.36027161,3911.5,3910.2,0.1043051]
[1734474689067,0.36027161,3911.5,3910.0,0.072]
[1734474689255,0.36027161,3911.5,3910.1,0.10430628]
[1734474689488,0.36027161,3911.5,3910.2,0.10430628]
[1734474689796,0.36694316,3911.4,3910.3,0.10430628]
[1734474689994,0.36694316,3911.4,3910.4,0.10430628]
[1734474690198,0.7527,3911.6,3910.5,0.10430628]
[1734474690365,0.7527,3911.6,3910.6,0.10430628]
[1734474690564,0.7527,3911.6,3910.7,0.10430628]
[1734474690769,0.3205682,3911.5,3910.8,0.10430628]
[1734474691085,0.3205682,3911.5,3910.1,3.0]
[1734474691282,0.7527,3911.6,3910.2,0.10426479]
[1734474691481,0.7527,3911.6,3910.3,0.10426479]
[1734474691790,0.7527,3911.6,3910.2,3.0]
[1734474691791,0.7527,3911.6,3910.4,0.10426479]
[1734474692001,0.7527,3911.6,3910.5,0.10426479]
[1734474692146,0.7527,3911.6,3910.6,0.10426479]
[1734474692352,0.3205682,3911.5,3910.7,0.10426479]
[1734474692586,0.3205682,3911.5,3910.2,3.0]
[1734474692765,0.7527,3911.6,3910.3,0.10425536]
[1734474693098,0.7527,3911.6,3910.4,0.10425536]
[1734474693306,0.7527,3911.6,3910.5,0.10425536]
[1734474693451,0.7527,3911.6,3910.6,0.10425536]
[1734474693655,0.7527,3911.6,3910.7,0.10425536]
[1734474694003,0.8266,3911.4,3909.6,0.072]
[1734474694154,0.8266,3911.4,3909.7,0.10428692]
[1734474694351,0.8266,3911.4,3910.2,3.0]
[1734474694599,0.8266,3911.4,3910.3,0.10428692]
[1734474694794,0.8266,3911.4,3910.4,0.10428692]
[1734474694963,0.96688132,3911.4,3910.5,0.10428692]
[1734474695167,0.96688132,3911.4,3910.6,0.10428692]
[1734474695398,0.96688132,3911.4,3910.7,0.10428692]
[1734474695603,0.96688132,3911.4,3910.2,3.0]
[1734474695806,0.8266,3911.4,3910.3,0.1042921]
[1734474695958,0.8266,3911.4,3910.4,0.1042921]
[1734474696309,0.8266,3911.4,3910.5,0.1042921]
[1734474696468,3.93271,3912.2,3910.6,0.1042921]
[1734474696676,3.38283,3912.0,3910.7,0.1042921]
[1734474696975,0.23539827,3911.9,3910.8,0.1042921]
[1734474697171,0.23539827,3911.9,3910.4,0.072]
[1734474697375,3.23539827,3911.9,3910.5,0.10430906]
[1734474697703,0.23539827,3911.8,3910.6,0.10430906]
[1734474697913,0.23539827,3911.8,3910.4,0.072]
[1734474697914,0.66182283,3911.7,3910.7,0.10430906]
[1734474698088,0.66182283,3911.7,3910.8,0.10430906]
[1734474698251,0.66182283,3911.7,3910.4,0.072]
[1734474698456,0.66182283,3911.7,3910.5,0.1043395]
[1734474698715,0.8266,3912.0,3910.6,0.1043395]
[1734474699053,2.55636,3911.8,3910.7,0.1043395]
[1734474699258,2.55636,3911.8,3910.4,0.072]
[1734474699501,2.55636,3911.8,3910.8,0.10434727]
[1734474699668,0.23550505,3911.7,3910.8,0.10434727]
[1734474699870,0.27918651,3911.6,3910.4,0.072]
[1734474700102,0.27918651,3911.6,3910.5,0.10434483]
[1734474700304,0.27918651,3911.6,3910.6,0.10434483]
[1734474700511,0.27918651,3911.6,3909.7,3.0]
[1734474700512,2.452982,3911.3,3910.7,0.10434483]
[1734474700671,2.452982,3911.3,3909.7,0.072]
[1734474700672,2.452982,3910.9,3909.7,0.072]
[1734474700870,2.55716,3910.6,3909.8,0.10440588]
[1734474701069,2.55703,3910.8,3909.7,0.072]
[1734474701389,0.8266,3910.2,3909.3,0.072]
[1734474701561,0.8266,3910.2,3908.7,0.072]
[1734474701759,1.18469134,3910.2,3908.7,0.072]
[1734474701993,2.452982,3909.7,3908.2,0.072]
[1734474702207,1.61213248,3909.6,3907.5,0.072]
[1734474702380,2.55833,3908.8,3907.5,0.20249507]
[1734474702604,2.452982,3909.3,3907.5,0.20249507]
[1734474702605,0.55,3909.0,3907.5,0.072]
[1734474702804,2.55832,3908.8,3907.5,0.072]
[1734474703017,0.8266,3908.1,3906.8,0.26679507]
[1734474703329,0.8266,3908.1,3906.7,0.00435821]
[1734474704089,0.8266,3908.1,3906.7,0.3206996]
[1734474704524,0.82918651,3909.0,3906.8,0.78718435]
[1734474704525,0.8266,3908.6,3906.8,0.78718435]
[1734474704700,1.10578651,3909.0,3906.8,0.78718435]
[1734474704901,0.35587685,3908.9,3906.8,0.78718435]
[1734474705889,0.35587685,3908.9,3906.9,0.55]
[1734474706088,0.35587685,3908.9,3907.0,0.38731314]
[1734474706493,0.35587685,3908.9,3907.0,0.79831744]
[1734474707235,0.35587685,3908.9,3907.0,0.38731314]
[1734474707537,0.7523,3908.6,3907.0,0.38731314]
[1734474707889,2.55874,3908.2,3907.0,0.38731314]
[1734474708253,0.55,3908.5,3906.2,0.38731314]
[1734474708254,3.31116,3908.0,3906.2,0.38731314]
[1734474708393,2.55894,3907.9,3906.2,0.79831744]
[1734474708591,0.7523,3908.0,3906.3,0.38731314]
[1734474708837,2.559,3907.8,3906.3,0.38731314]
[1734474709003,0.33113,3907.7,3906.3,0.38731314]
[1734474709390,3.31116,3908.0,3906.3,0.38731314]
[1734474710131,0.7523,3908.0,3906.3,0.38731314]
[1734474710448,2.55892,3907.9,3906.3,0.38731314]
[1734474711091,0.7523,3908.0,3906.3,0.38731314]
[1734474712589,0.7523,3908.0,3906.0,0.12871416]
[1734474712795,0.7523,3908.0,3906.0,0.72798421]
[1734474713908,0.55,3907.9,3906.0,0.59927005]
[1734474714060,2.452982,3907.6,3905.6,0.13102792]
[1734474714262,2.452982,3907.2,3905.4,0.26683326]
[1734474714575,2.452982,3907.2,3905.3,0.38731314]
[1734474714854,0.3205282,3907.1,3905.3,0.38731314]
[1734474715066,0.55,3906.7,3905.1,0.4110043]
[1734474715229,2.452982,3906.0,3904.6,0.2668725]
[1734474715429,2.452982,3906.0,3903.7,2.452982]
[1734474715430,3.205282,3906.0,3903.7,2.452982]
[1734474715817,2.452982,3905.6,3903.4,0.33842132]
[1734474716019,0.5013272,3905.5,3903.5,0.34693509]
[1734474716249,0.5013272,3905.5,3903.8,0.13081145]
[1734474716754,0.7523,3905.5,3903.8,0.13081145]
[1734474716916,0.7523,3905.5,3903.2,0.26694262]
[1734474716917,2.5607,3905.2,3903.2,0.26694262]
[1734474717121,2.56077,3905.1,3903.2,0.26694262]
[1734474717345,2.56085,3905.0,3903.2,0.26694262]
[1734474717531,2.56091,3904.9,3902.8,0.33842132]
[1734474717750,2.709073,3904.8,3902.9,0.27914033]
[1734474717951,2.709073,3904.8,3902.6,0.2670058]
[1734474717952,2.452982,3904.8,3903.0,0.12695014]
[1734474718152,2.452982,3905.2,3903.0,0.12695014]
[1734474719587,2.452982,3905.2,3903.1,0.55]
[1734474720445,0.7523,3905.5,3903.1,3.57561286]
[1734474720700,2.452982,3905.6,3903.1,3.57561286]
[1734474720999,0.2452982,3905.5,3903.3,0.55]
[1734474721137,0.2452982,3905.5,3903.4,0.02560973]
[1734474722045,0.2452982,3905.5,3903.3,0.55]
[1734474722873,2.452982,3905.6,3903.4,0.02560976]
[1734474723658,0.7523,3905.9,3903.5,0.55]
[1734474723848,0.7523,3905.9,3903.6,0.02560853]
[1734474724046,0.7523,3905.9,3903.2,0.6155545]
[1734474724047,2.452982,3905.6,3903.3,0.55]
[1734474725045,2.452982,3905.6,3903.4,0.02560979]
[1734474725288,0.2452982,3905.5,3903.4,0.02560979]
[1734474725895,0.2452982,3905.5,3903.2,0.6155545]
[1734474726195,0.2452982,3905.5,3903.1,0.12599364]
[1734474726420,0.2452982,3905.5,3903.1,0.02561287]
[1734474726987,0.2452982,3905.5,3903.6,0.12660413]
[1734474732464,0.7523,3905.9,3903.6,0.12660413]
[1734474732708,0.23432186,3905.8,3903.6,0.12660413]
[1734474733191,0.7523,3905.9,3903.6,0.12660413]
[1734474733399,0.23435831,3905.8,3903.6,0.12660413]
[1734474734077,0.23435831,3905.7,3903.6,0.12660413]
[1734474734278,0.23435831,3905.6,3903.7,0.55795861]
[1734474735154,0.23435831,3905.5,3903.7,0.55795861]
[1734474735452,0.34396403,3905.7,3903.7,0.55795861]
[1734474735675,0.23460102,3905.6,3903.7,0.55795861]
[1734474736293,0.23460102,3905.5,3903.7,0.55795861]
[1734474736480,0.23460102,3905.4,3903.8,0.36845627]
[1734474736660,0.34396403,3905.7,3903.8,0.36845627]
[1734474736870,0.23478755,3905.6,3903.8,0.36845627]
[1734474737076,0.34396403,3905.7,3903.8,0.36845627]
[1734474737399,0.23478507,3905.6,3903.8,0.36845627]
[1734474737582,0.23478507,3905.5,3903.8,0.36845627]
[1734474737893,0.23478507,3905.4,3903.8,0.36845627]
[1734474738096,0.23478507,3905.3,3903.8,0.36845627]
[1734474738302,0.23478507,3905.2,3903.8,0.36845627]
[1734474738465,0.34396403,3905.7,3903.8,0.36845627]
[1734474738668,0.23509957,3905.6,3903.8,0.36845627]
[1734474738995,0.34396403,3905.7,3903.8,0.36845627]
[1734474738996,0.23509957,3905.5,3903.8,0.36845627]
[1734474739291,0.23509957,3905.4,3903.8,0.36845627]
[1734474739492,0.23509957,3905.3,3903.8,0.36845627]
[1734474739671,0.23509957,3905.2,3903.8,0.36845627]
[1734474739870,0.23509957,3905.1,3903.8,0.36845627]
[1734474740056,0.34396403,3905.7,3903.8,0.36845627]
[1734474740257,0.23526638,3905.6,3903.8,0.36845627]
[1734474740566,0.23526638,3905.5,3903.8,0.36845627]
[1734474740772,0.23526638,3905.4,3903.8,0.36845627]
[1734474740978,0.23526638,3905.3,3903.8,0.36845627]
[1734474741174,0.23526638,3905.2,3903.8,0.36845627]
[1734474741374,0.23526638,3905.1,3903.8,0.36845627]
[1734474741574,0.23526638,3905.0,3903.8,0.36845627]
[1734474741774,0.23526638,3904.9,3903.8,0.36845627]
[1734474741974,0.34396403,3905.7,3903.8,0.36845627]
[1734474742182,0.23543362,3905.6,3903.8,0.36845627]
[1734474742496,0.23543362,3905.5,3903.8,0.36845627]
[1734474742656,0.23543362,3905.4,3903.8,0.36845627]
[1734474742859,0.23543362,3905.3,3903.8,0.36845627]
[1734474743058,0.23543362,3905.2,3903.8,0.36845627]
[1734474743304,0.13316977,3905.6,3903.8,0.36845627]
[1734474743305,0.23543362,3905.1,3903.8,0.36845627]
[1734474743464,0.23589403,3905.0,3903.8,0.36845627]
[1734474743800,0.23589403,3904.9,3903.8,0.36845627]
[1734474743961,0.23589403,3904.8,3903.8,0.36845627]
[1734474744163,0.23589403,3904.7,3903.5,0.55]
[1734474744376,0.23589403,3904.6,3903.5,0.55]
[1734474744711,2.58615177,3905.6,3903.5,0.55]
[1734474744712,0.23589403,3904.5,3903.5,0.55]
[1734474745008,2.58615177,3905.6,3903.5,0.55]
[1734474745160,0.23620671,3905.5,3903.8,0.13107138]
[1734474745362,0.80286454,3905.4,3904.3,3.0]
[1734474745582,0.80286454,3905.4,3903.8,0.13107138]
[1734474745583,0.23620671,3905.3,3903.8,0.13107138]
[1734474745784,0.56665783,3905.4,3904.3,3.0]
[1734474745785,0.23620671,3905.2,3904.3,3.0]
[1734474745989,0.23620671,3905.1,3904.3,3.0]
[1734474746196,0.23620671,3905.0,3904.3,3.0]
[1734474746368,0.23620671,3904.9,3903.8,0.13107138]
[1734474746569,0.23620671,3904.8,3903.8,0.13107138]
[1734474746859,0.23613659,3904.7,3903.8,0.13107138]
[1734474747063,0.23613659,3904.6,3904.3,3.0]
[1734474747303,2.58615177,3905.6,3903.8,0.13107138]
[1734474747507,0.75083237,3905.5,3903.8,0.13107138]
[1734474747814,0.23618619,3905.4,3904.3,3.0]
[1734474748018,0.23618619,3905.3,3904.3,3.0]
[1734474748162,0.23618619,3905.2,3903.8,0.13107138]
[1734474748363,0.23618619,3905.1,3903.8,0.13107138]
[1734474748602,0.23618619,3905.0,3903.8,0.13107138]
[1734474748803,0.23618619,3904.9,3903.8,0.13107138]
[1734474749106,0.23618619,3904.8,3903.8,0.13107138]
[1734474749290,3.07515618,3905.5,3903.8,0.13107138]
[1734474749291,0.23618619,3904.7,3904.5,3.0]
[1734474749498,0.23618619,3904.6,3903.8,0.13107138]
[1734474749678,0.51464618,3905.5,3903.8,0.13107138]
[1734474749679,0.23618619,3904.5,3903.8,0.13107138]
[1734474750010,0.23618619,3904.4,3903.8,0.13107138]
[1734474750214,0.23618619,3904.3,3903.8,0.13107138]
[1734474750409,0.23618619,3904.2,3903.8,0.13107138]
[1734474750709,0.51464618,3905.5,3903.8,0.13107138]
[1734474751006,0.632219,3905.4,3903.8,0.13107138]
[1734474751218,0.23624332,3905.3,3903.8,0.13107138]
[1734474751362,0.23624332,3905.2,3903.8,0.13107138]
[1734474751562,0.23624332,3905.1,3903.8,0.13107138]
[1734474751763,0.39597568,3905.4,3903.8,0.13107138]
[1734474751764,0.23624332,3905.0,3904.6,3.0]
[1734474751964,0.23624332,3904.9,3904.6,3.0]
[1734474752160,0.23624332,3904.8,3903.8,0.13107138]
[1734474752407,0.39597568,3905.4,3903.8,0.13107138]
[1734474752408,0.23624332,3904.7,3903.8,0.13107138]
[1734474752613,0.39597568,3905.4,3903.8,0.13107138]
[1734474752614,0.39597568,3905.4,3904.6,3.0]
[1734474752775,0.62513066,3905.3,3904.6,3.0]
[1734474752968,0.23611646,3905.2,3903.8,0.13107138]
[1734474753285,0.23611646,3905.1,3904.6,3.0]
[1734474753459,0.3890142,3905.3,3904.6,3.0]
[1734474753664,0.23610725,3905.2,3904.6,3.0]
[1734474753908,0.23610725,3905.1,3903.8,0.13107138]
[1734474754078,0.23610725,3905.0,3904.6,3.0]
[1734474754277,0.23610725,3904.9,3903.8,0.13107138]
[1734474754473,0.23610725,3904.8,3903.8,0.13107138]
[1734474754770,0.23610725,3904.7,3903.8,0.13107138]
[1734474755001,0.23610725,3904.6,3903.8,0.13107138]
[1734474755201,0.23610725,3904.5,3903.8,0.13107138]
[1734474755407,0.23610725,3904.4,3903.8,0.13107138]
[1734474755607,0.14301986,3905.2,3903.8,0.13107138]
[1734474755809,0.23605484,3905.1,3903.8,0.13107138]
[1734474756114,0.14301986,3905.2,3904.6,3.0]
[1734474756115,0.23605484,3905.0,3904.6,3.0]
[1734474756314,0.23605484,3904.9,3904.6,3.0]
[1734474756495,0.23605484,3904.8,3904.6,3.0]
[1734474756700,0.23605484,3904.7,3904.6,3.0]
[1734474756868,0.23597975,3904.7,3904.6,3.0]
[1734474757268,0.23597975,3904.7,3903.9,0.5123]
[1734474757513,0.3890142,3905.3,3904.5,0.2561]
[1734474757698,0.37893257,3905.2,3904.5,0.2561]
[1734474757864,0.23591271,3905.1,3904.5,0.2561]
[1734474758072,0.23591271,3905.0,3904.6,3.0]
[1734474758415,0.23591271,3904.9,3904.5,0.2561]
[1734474758578,0.23591271,3904.8,3904.6,3.0]
[1734474758782,0.23591271,3904.7,3904.1,0.25614]
[1734474758987,0.14301986,3905.2,3904.6,3.0]
[1734474759164,0.23588554,3905.1,3904.5,0.25611]
[1734474759368,0.23588554,3905.0,3904.5,0.25611]
[1734474759592,0.23588554,3904.9,3904.1,0.25614]
[1734474759791,0.1809104,3905.1,3904.6,3.2561]
[1734474760018,0.23589239,3905.0,3904.6,0.2561]
[1734474760183,0.23589239,3904.9,3904.6,3.2561]
[1734474760374,0.1809104,3905.1,3904.6,3.2561]
[1734474760577,0.2358878,3905.0,3904.6,0.2561]
[1734474760870,0.1809104,3905.1,3904.6,0.2561]
[1734474761104,0.23589091,3905.0,3904.6,0.2561]
[1734474761276,0.23589091,3904.9,3904.6,0.2561]
[1734474761479,0.1809104,3905.1,3904.6,0.2561]
[1734474761800,0.23588838,3905.0,3904.6,0.2561]
[1734474762003,0.14301986,3905.2,3904.6,0.2561]